fUSD/lending_fUSD_20240426
["ID","MTS","AMOUNT","RATE_DAILY","PERIOD"]
[323612790,1714126232970,-154.75,9.899e-05,2]
[323612792,1714126232982,-154.75,9.926e-05,2]
[323612794,1714126232993,-154.75,9.953e-05,2]
[323612797,1714126233003,-154.75,9.98e-05,2]
[323612799,1714126233013,-164.56610588,9.996e-05,2]
[323612801,1714126233023,-2126.09899732,9.996e-05,2]
[323612803,1714126233038,-230.13777296,9.996e-05,2]
[323612806,1714126233047,-7646.29749902,0.0001,2]
[323612808,1714126233064,-7654.34060559,0.0001,2]
[323612809,1714126233075,-155.0,0.0001,2]
[323612810,1714126233086,-166.87,0.00010003,2]
[323612811,1714126233098,-154.75,0.00010007,2]
[323612812,1714126233109,-154.75,0.00010034,2]
[323612813,1714126233119,-154.75,0.00010061,2]
[323612814,1714126233131,-800.09635265,0.00010077,2]
[323612815,1714126233147,-173.15364735,0.00010077,2]
[323612816,1714126233158,-86.78936813,0.00010088,2]
[323612817,1714126233179,-67.96063187,0.00010088,2]
[323612818,1714126233189,-154.75,0.00010115,2]
[323612819,1714126233199,-154.75,0.00010142,2]
[323612820,1714126233209,-154.75,0.00010169,2]
[323612821,1714126233221,-154.75,0.00010196,2]
[323612822,1714126233233,-154.75,0.00010223,2]
[323612823,1714126233243,-154.75,0.0001025,2]
[323612824,1714126233253,-154.75,0.00010276,2]
[323612825,1714126233264,-684.39883243,0.00010295,2]
[323612826,1714126233274,-2216.26019612,0.00010297,2]
[323612827,1714126233285,-154.75,0.00010303,2]
[323612828,1714126233295,-246.38455444,0.00010327,2]
[323612829,1714126233309,-1105.6395716,0.00010327,2]
[323612830,1714126233320,-400.0,0.00010328,2]
[323612831,1714126233330,-154.75,0.0001033,2]
[323612832,1714126233341,-456.92,0.00010452,2]
[323612833,1714126233353,-168.93503482,0.0001047,2]
[323612834,1714126233364,-500.0,0.00010959,2]
[323612835,1714126233374,-200.0,0.00011,2]
[323612836,1714126233386,-421.35898498,0.00011289,2]
[323612837,1714126233396,-1000.0,0.00011299,2]
[323612838,1714126233407,-231.7649,0.00011299,2]
[323612839,1714126233417,-264.09927067,0.00011299,2]
[323612840,1714126233430,-29729.34142933,0.00011299,2]
[323612841,1714126233440,-973.25,0.00011337,2]
[323612842,1714126233450,-900.35753,0.0001138,2]
[323612843,1714126233461,-31269.30356662,0.00011391,2]
[323612844,1714126233471,-4183.34095941,0.00011392,2]
[323612845,1714126233482,-5548.08280037,0.00011393,2]
[323612846,1714126233492,-193.07516669,0.00011397,2]
[323612847,1714126233502,-155.10965488,0.00011397,2]
[323612848,1714126233512,-157.04510012,0.00011397,2]
[323612849,1714126233523,-266.13520307,0.00011397,2]
[323612850,1714126233534,-243.60508632,0.00011397,2]
[323612851,1714126233544,-185.56957774,0.00011397,2]
[323612852,1714126233554,-184.91484179,0.00011397,2]
[323612853,1714126233564,-4413.09771635,0.00011398,2]
[323612854,1714126233575,-500.0,0.00011398,2]
[323612855,1714126233585,-363.81924561,0.00011398,2]
[323612856,1714126233595,-344.47698572,0.00011398,2]
[323612857,1714126233607,-907.07,0.00011398,2]
[323612858,1714126233617,-500.0,0.00011398,2]
[323612859,1714126233628,-899.4,0.00011398,2]
[323612860,1714126233638,-14071.76,0.00011398,2]
[323612861,1714126233649,-500.0,0.00011398,2]
[323612862,1714126233659,-500.0,0.00011398,2]
[323612863,1714126233670,-543.68,0.00011398,2]
[323612864,1714126233680,-416.99,0.00011398,2]
[323612865,1714126233692,-500.0,0.00011398,2]
[323612866,1714126233703,-546.79,0.00011398,2]
[323612867,1714126233713,-500.0,0.00011398,2]
[323612868,1714126233723,-500.0,0.00011398,2]
[323612869,1714126233734,-500.0,0.00011398,2]
[323612870,1714126233745,-771.05,0.00011398,2]
[323612871,1714126233755,-500.0,0.00011398,2]
[323612872,1714126233765,-1149.33,0.00011398,2]
[323612873,1714126233776,-243.17,0.00011398,2]
[323612874,1714126233786,-500.0,0.00011398,2]
[323612875,1714126233796,-500.0,0.00011398,2]
[323612876,1714126233806,-500.0,0.00011398,2]
[323612877,1714126233816,-613.45,0.00011398,2]
[323612878,1714126233827,-500.0,0.00011398,2]
[323612879,1714126233837,-563.6,0.00011398,2]
[323612880,1714126233849,-530.96,0.00011398,2]
[323612881,1714126233859,-563.82,0.00011398,2]
[323612882,1714126233869,-500.0,0.00011398,2]
[323612883,1714126233880,-610.98595532,0.00011398,2]
[323612884,1714126233895,-500.0,0.00011398,2]
[323612885,1714126233904,-500.0,0.00011398,2]
[323612886,1714126233915,-1390.79,0.00011398,2]
[323612887,1714126233925,-500.0,0.00011398,2]
[323612888,1714126233936,-4653.0,0.00011398,2]
[323612889,1714126233946,-500.0,0.00011398,2]
[323612890,1714126233956,-500.0,0.00011398,2]
[323612891,1714126233967,-980.55,0.00011398,2]
[323612892,1714126233978,-2749.49,0.00011398,2]
[323612893,1714126233988,-473.19968271,0.00011398,2]
[323612894,1714126233999,-500.0,0.00011398,2]
[323612895,1714126234009,-500.0,0.00011398,2]
[323612896,1714126234019,-300.59,0.00011398,2]
[323612897,1714126234029,-500.0,0.00011398,2]
[323612898,1714126234040,-595.33,0.00011398,2]
[323612899,1714126234050,-500.0,0.00011398,2]
[323612900,1714126234061,-500.0,0.00011398,2]
[323612901,1714126234071,-5723.78782038,0.00011398,2]
[323612902,1714126234084,-3318.25,0.00011398,2]
[323612903,1714126234098,-313.94261921,0.00011398,2]
[323612904,1714126234115,-1075.9549519,0.00011398,2]
[323612905,1714126234128,-2657.2665935,0.00011398,2]
[323612906,1714126234140,-873.58,0.00011398,2]
[323612907,1714126234153,-737.77704635,0.00011398,2]
[323612908,1714126234175,-562.34159793,0.00011398,2]
[323612921,1714126238203,-404.8762609,9.524e-05,2]
[323612923,1714126238213,-3230.8827811,0.00011398,2]
[323612926,1714126238225,-4172.59658963,0.00011398,2]
[323612928,1714126238236,-500.0,0.00011398,2]
[323612930,1714126238246,-8400.81251418,0.00011399,2]
[323612932,1714126238259,-93915.20165419,0.00011399,2]
[323612935,1714126238271,-11940.0,0.00011399,2]
[323612937,1714126238294,-155.0,9.524e-05,2]
[323612938,1714126238304,-676.075,0.00011399,2]
[323612939,1714126238317,-562.99630196,0.00011399,2]
[323612940,1714126238330,-769.96443153,0.00011399,2]
[323612941,1714126238369,-126285.61779814,0.00011399,2]
[323612942,1714126238380,-17460.3364,0.000114,2]
[323612943,1714126238390,-272.0931,0.000114,2]
[323612944,1714126238401,-20042.99113245,0.00011457,2]
[323612945,1714126238411,-2231.98446726,0.00011488,2]
[323612946,1714126238422,-203.9518291,0.00011498,2]
[323612947,1714126238432,-339.20676129,0.00011498,2]
[323612948,1714126238442,-82535.8379097,0.00011498,2]
[323612949,1714126238455,-311.184893,0.00011498,2]
[323612950,1714126238467,-2143.77423767,0.00011498,2]
[323612951,1714126238480,-41748.80594286,0.00011498,2]
[323612952,1714126238490,-709.14778738,0.00011498,2]
[323612953,1714126238500,-781.35828446,0.00011498,2]
[323612954,1714126238511,-1064.24123917,0.00011498,2]
[323612955,1714126238521,-155.0,0.00011498,2]
[323612956,1714126238531,-302.69207003,0.00011498,2]
[323612957,1714126238542,-160.91122999,0.00011498,2]
[323612958,1714126238553,-157.23971478,0.00011498,2]
[323612959,1714126238564,-155.0,0.00011498,2]
[323612960,1714126238575,-241.43755731,0.00011498,2]
[323612961,1714126238585,-213.89673121,0.00011498,2]
[323612963,1714126238596,-2185.86360756,0.00011498,2]
[323612964,1714126238608,-500.0,0.00011499,2]
[323612965,1714126238619,-500.0,0.00011499,2]
[323612966,1714126238631,-299.61172514,0.00011499,2]
[323612967,1714126238642,-487.69486882,0.00011499,2]
[323612969,1714126238653,-1770.31,0.00011499,2]
[323612970,1714126238664,-333482.09291402,0.000115,5]
[323612971,1714126238674,-12628.66375224,0.00011543,2]
[323612972,1714126238685,-180.21956279,0.00011572,2]
[323612973,1714126238696,-12477.02377608,0.00011572,2]
[323612975,1714126238706,-400.0,0.0001162,2]
[323612976,1714126238717,-500.0,0.00011672,2]
[323612977,1714126238727,-907.07,0.00011672,2]
[323612978,1714126238737,-500.0,0.00011672,2]
[323612979,1714126238747,-899.4,0.00011672,2]
[323612980,1714126238757,-14071.76,0.00011672,2]
[323612981,1714126238767,-500.0,0.00011672,2]
[323612982,1714126238777,-500.0,0.00011672,2]
[323612983,1714126239059,-543.68,0.00011672,2]
[323612984,1714126239112,-356.62007743,0.00011672,2]
[323612985,1714126239132,-546.79,0.00011672,2]
[323612986,1714126239143,-500.0,0.00011672,2]
[323612987,1714126239152,-500.0,0.00011672,2]
[323612988,1714126239161,-500.0,0.00011672,2]
[323612989,1714126239170,-771.05,0.00011672,2]
[323612990,1714126239180,-500.0,0.00011672,2]
[323612991,1714126239190,-1149.33,0.00011672,2]
[323612992,1714126239200,-500.0,0.00011672,2]
[323612993,1714126239209,-500.0,0.00011672,2]
[323612994,1714126239219,-500.0,0.00011672,2]
[323612995,1714126239229,-613.45,0.00011672,2]
[323612996,1714126239238,-500.0,0.00011672,2]
[323612997,1714126239247,-563.6,0.00011672,2]
[323612998,1714126239256,-530.96,0.00011672,2]
[323612999,1714126239265,-563.82,0.00011672,2]
[323613000,1714126239274,-500.0,0.00011672,2]
[323613001,1714126239283,-500.0,0.00011672,2]
[323613002,1714126239292,-500.0,0.00011672,2]
[323613003,1714126239301,-1390.79,0.00011672,2]
[323613004,1714126239310,-500.0,0.00011672,2]
[323613005,1714126239319,-4653.0,0.00011672,2]
[323613006,1714126239328,-166.23329054,0.00011672,2]
[323613007,1714126239337,-500.0,0.00011672,2]
[323613008,1714126239347,-980.55,0.00011672,2]
[323613009,1714126239357,-2749.49,0.00011672,2]
[323613010,1714126239366,-300.01,0.00011672,2]
[323613011,1714126239375,-500.0,0.00011672,2]
[323613012,1714126239385,-500.0,0.00011672,2]
[323613013,1714126239394,-595.33,0.00011672,2]
[323613014,1714126239402,-500.0,0.00011672,2]
[323613015,1714126239411,-500.0,0.00011672,2]
[323613016,1714126239421,-22666.38,0.00011672,2]
[323613017,1714126239430,-490.86,0.00011672,2]
[323613018,1714126239438,-284.51953103,0.00011678,2]
[323613019,1714126239447,-156.0051355,0.00011678,2]
[323613020,1714126239456,-743.63693517,0.00011678,2]
[323613021,1714126239466,-12477.023776,0.00011693,2]
[323613022,1714126239475,-59673.10715525,0.0001177,2]
[323613023,1714126239484,-500.0,0.00011773,2]
[323613024,1714126239493,-500.0,0.00011773,2]
[323613025,1714126239502,-1770.31,0.00011773,2]
[323613026,1714126239511,-20000.0,0.00011806,2]
[323613027,1714126239520,-12477.023776,0.00011813,2]
[323613028,1714126239529,-900.35753,0.0001192,2]
[323613029,1714126239538,-12477.023776,0.00011934,2]
[323613030,1714126239547,-500.0,0.00011946,2]
[323613031,1714126239557,-907.07,0.00011946,2]
[323613032,1714126239566,-500.0,0.00011946,2]
[323613033,1714126239576,-899.4,0.00011946,2]
[323613034,1714126239586,-14071.76,0.00011946,2]
[323613035,1714126239597,-182.9035682,0.00011946,2]
[323613036,1714126239609,-500.0,0.00011946,2]
[323613037,1714126239619,-543.68,0.00011946,2]
[323613038,1714126239628,-546.79,0.00011946,2]
[323613039,1714126239637,-500.0,0.00011946,2]
[323613040,1714126239646,-500.0,0.00011946,2]
[323613041,1714126239656,-500.0,0.00011946,2]
[323613042,1714126239665,-771.05,0.00011946,2]
[323613043,1714126239674,-500.0,0.00011946,2]
[323613044,1714126239684,-1149.33,0.00011946,2]
[323613045,1714126239694,-500.0,0.00011946,2]
[323613046,1714126239703,-500.0,0.00011946,2]
[323613047,1714126239712,-500.0,0.00011946,2]
[323613048,1714126239721,-613.45,0.00011946,2]
[323613049,1714126239731,-500.0,0.00011946,2]
[323613050,1714126239741,-563.6,0.00011946,2]
[323613051,1714126239752,-530.96,0.00011946,2]
[323613052,1714126239762,-563.82,0.00011946,2]
[323613053,1714126239771,-195.45812339,0.00011946,2]
[323613054,1714126239781,-500.0,0.00011946,2]
[323613055,1714126239791,-500.0,0.00011946,2]
[323613056,1714126239800,-1390.79,0.00011946,2]
[323613057,1714126239809,-500.0,0.00011946,2]
[323613058,1714126239818,-4653.0,0.00011946,2]
[323613059,1714126239827,-313.77,0.00011946,2]
[323613060,1714126239837,-980.55,0.00011946,2]
[323613061,1714126239846,-709.26955009,0.00011946,2]
[323613062,1714126239868,-662.33648239,0.00011946,2]
[323613063,1714126239880,-1377.88396752,0.00011946,2]
[323613064,1714126239893,-500.0,0.00011946,2]
[323613065,1714126239902,-500.0,0.00011946,2]
[323613066,1714126239911,-595.33,0.00011946,2]
[323613067,1714126239920,-500.0,0.00011946,2]
[323613068,1714126239929,-500.0,0.00011946,2]
[323613069,1714126239939,-22666.38,0.00011946,2]
[323613070,1714126239948,-5000.0,0.00012,2]
[323613071,1714126239958,-11000.0,0.00012,2]
[323613072,1714126239967,-152.22958301,0.00012,2]
[323613073,1714126239978,-2000.0,0.00012,3]
[323613074,1714126239988,-2000.0,0.00012,3]
[323613075,1714126239997,-2114.0,0.00012,3]
[323613076,1714126240006,-2750.0,0.00012,3]
[323613077,1714126240016,-1374.90822575,0.00012,2]
[323613078,1714126240025,-11784.53858978,0.00012,2]
[323613079,1714126240441,-547.52442503,0.00012,2]
[323613080,1714126240496,-871.9,0.00012,2]
[323613101,1714126243418,-164052.95511364,0.00012,2]
[323613102,1714126243429,-7311.04343587,0.00012,2]
[323613103,1714126243472,-442.4500452,0.00012,2]
[323613104,1714126243527,-13539.60843559,0.00012,2]
[323613105,1714126243584,-63770.27311949,0.00012,2]
[323613106,1714126243595,-1645.7999992,0.00012,2]
[323613178,1714126246279,-793.68,0.00011398,2]
[323613179,1714126246289,-226.14998424,0.00011398,2]
[323613180,1714126246491,-10737.021767,0.00011398,2]
[323613181,1714126279676,116844.0,0.00025,120]
[323613193,1714126646802,151.0,0.00020469,120]
[323613202,1714127067214,151.0,0.00020469,120]
[323613233,1714127432538,-1054.71998718,8.846e-05,2]
[323613234,1714127432594,-538.41443529,8.846e-05,2]
[323613235,1714127432605,-623.12577365,8.846e-05,2]
[323613236,1714127432614,-641.69726746,8.846e-05,2]
[323613237,1714127432624,-5.64523408,8.846e-05,2]
[323613238,1714127432656,-1771.54442807,8.846e-05,2]
[323613239,1714127432665,-684.39883243,8.847e-05,2]
[323613240,1714127432675,-155.0,8.848e-05,2]
[323613241,1714127432684,-376.96785191,8.848e-05,2]
[323613242,1714127432693,-408.57453561,8.849e-05,2]
[323613243,1714127432703,-313.87560554,8.849e-05,2]
[323613244,1714127432712,-23359.83893965,8.849e-05,2]
[323613245,1714127432722,-3000.0,8.853e-05,2]
[323613246,1714127432731,-446.39,8.872e-05,2]
[323613247,1714127432740,-3858.8207,8.9e-05,2]
[323613248,1714127432750,-763.47,0.00010743,2]
[323613249,1714127432759,-240.0,0.00010888,2]
[323613250,1714127432767,-2311.94264786,0.00011,2]
[323613251,1714127432777,-200.0,0.00011,2]
[323613252,1714127432786,-499.99,0.00011,2]
[323613253,1714127432796,-783.95,0.00011045,2]
[323613254,1714127432805,-446.39,0.00011136,2]
[323613255,1714127432813,-3728.411,0.00011198,2]
[323613256,1714127432822,-160.0,0.00011247,2]
[323613257,1714127432831,-884.51862084,0.00011298,2]
[323613258,1714127432843,-10750.79830849,0.00011298,2]
[323613259,1714127432865,-5179.960867,0.00011298,2]
[323613260,1714127432884,-594.75831664,0.00011298,2]
[323613261,1714127432894,-688.81808505,0.00011298,2]
[323613262,1714127432912,-4947.74370198,0.00011298,2]
[323613263,1714127432922,-9922.18529293,0.00011298,2]
[323613264,1714127432933,-2266.56216504,0.00011298,2]
[323613265,1714127432944,-1105.79495962,0.00011298,2]
[323613277,1714127438347,-370.96436731,0.00011298,2]
[323613279,1714127438401,-11915.9391151,0.00011298,2]
[323613281,1714127438410,-751.4418,0.00011298,2]
[323613283,1714127438419,-4782.3761,0.00011298,2]
[323613285,1714127438428,-24833.33387865,0.00011298,2]
[323613287,1714127438439,-384.59479513,0.00011298,2]
[323613291,1714127438460,-468.50164004,0.00011298,2]
[323613298,1714127438518,-19699.46118618,0.00011298,2]
[323613300,1714127438526,-5414.58,0.00011298,2]
[323613302,1714127438536,-500.0,0.00011397,2]
[323613304,1714127438545,-213.77180757,0.00011397,2]
[323613306,1714127438553,-500.0,0.00011397,2]
[323613308,1714127438562,-500.0,0.00011397,2]
[323613310,1714127438571,-500.0,0.00011397,2]
[323613312,1714127438580,-284.27491682,0.00011397,2]
[323613313,1714127438588,-500.0,0.00011397,2]
[323613315,1714127438598,-786.98,0.00011397,2]
[323613316,1714127438606,-500.0,0.00011397,2]
[323613317,1714127438615,-500.0,0.00011397,2]
[323613318,1714127438624,-500.0,0.00011397,2]
[323613319,1714127438632,-500.0,0.00011397,2]
[323613320,1714127438641,-674.67,0.00011397,2]
[323613321,1714127438650,-500.0,0.00011397,2]
[323613322,1714127438659,-504.01,0.00011397,2]
[323613323,1714127438668,-500.0,0.00011397,2]
[323613324,1714127438677,-500.0,0.00011397,2]
[323613325,1714127438686,-500.0,0.00011397,2]
[323613326,1714127438695,-500.0,0.00011397,2]
[323613327,1714127438704,-573.48,0.00011397,2]
[323613328,1714127438713,-1005.67,0.00011397,2]
[323613329,1714127438723,-500.0,0.00011397,2]
[323613330,1714127438732,-500.0,0.00011397,2]
[323613331,1714127438741,-500.0,0.00011397,2]
[323613332,1714127438750,-500.0,0.00011397,2]
[323613333,1714127438759,-500.0,0.00011397,2]
[323613334,1714127438768,-500.0,0.00011397,2]
[323613335,1714127438777,-500.0,0.00011397,2]
[323613336,1714127438786,-500.0,0.00011397,2]
[323613337,1714127438795,-536.77,0.00011397,2]
[323613338,1714127438804,-500.0,0.00011397,2]
[323613339,1714127438813,-500.0,0.00011397,2]
[323613340,1714127438822,-500.0,0.00011397,2]
[323613341,1714127438831,-500.0,0.00011397,2]
[323613342,1714127438840,-857.98,0.00011397,2]
[323613343,1714127438850,-500.0,0.00011397,2]
[323613344,1714127438859,-500.0,0.00011397,2]
[323613345,1714127438868,-500.0,0.00011397,2]
[323613346,1714127438877,-4071.38,0.00011397,2]
[323613347,1714127438886,-500.0,0.00011397,2]
[323613348,1714127438895,-500.0,0.00011397,2]
[323613349,1714127438904,-2405.8,0.00011397,2]
[323613350,1714127438913,-12960.06646157,0.00011397,2]
[323613351,1714127438940,-369.90456315,0.00011397,2]
[323613352,1714127438951,-6503.10897528,0.00011397,2]
[323613353,1714127438960,-500.0,0.00011397,2]
[323613354,1714127438969,-520.91,0.00011397,2]
[323613355,1714127438978,-760.61,0.00011397,2]
[323613356,1714127438988,-500.0,0.00011397,2]
[323613357,1714127438996,-11870.6,0.00011397,2]
[323613358,1714127439005,-99022.36017239,0.00011398,2]
[323613359,1714127439017,-1398.78138741,0.00011398,2]
[323613360,1714127439028,-843.53623725,0.00011398,2]
[323613361,1714127439038,-3612.34098544,0.00011398,2]
[323613406,1714127440458,-14987.00128813,0.00011398,2]
[323613408,1714127440467,-500.0,0.00011398,2]
[323613411,1714127440476,-500.0,0.00011398,2]
[323613414,1714127440486,-500.0,0.00011398,2]
[323613417,1714127440496,-500.0,0.00011398,2]
[323613420,1714127440505,-572.63,0.00011398,2]
[323613423,1714127440515,-500.0,0.00011398,2]
[323613426,1714127440524,-501.66823934,0.00011398,2]
[323613429,1714127440533,-500.0,0.00011398,2]
[323613432,1714127440542,-1622.79,0.00011398,2]
[323613435,1714127440551,-11923.99062868,0.00011543,2]
[323613438,1714127440560,-500.0,0.00011671,2]
[323613441,1714127440569,-786.98,0.00011671,2]
[323613444,1714127440578,-186.07,0.00011671,2]
[323613446,1714127440588,-500.0,0.00011671,2]
[323613466,1714127440838,-500.0,0.00011671,2]
[323613467,1714127440856,-500.0,0.00011671,2]
[323613468,1714127440865,-674.67,0.00011671,2]
[323613469,1714127440875,-500.0,0.00011671,2]
[323613470,1714127440884,-500.0,0.00011671,2]
[323613471,1714127440894,-500.0,0.00011671,2]
[323613473,1714127440903,-1005.67,0.00011671,2]
[323613475,1714127440912,-500.0,0.00011671,2]
[323613476,1714127440922,-500.0,0.00011671,2]
[323613478,1714127440931,-500.0,0.00011671,2]
[323613480,1714127440940,-500.0,0.00011671,2]
[323613482,1714127440949,-500.0,0.00011671,2]
[323613484,1714127440959,-500.0,0.00011671,2]
[323613485,1714127440968,-500.0,0.00011671,2]
[323613487,1714127440977,-536.77,0.00011671,2]
[323613489,1714127440987,-500.0,0.00011671,2]
[323613490,1714127440996,-500.0,0.00011671,2]
[323613492,1714127441005,-500.0,0.00011671,2]
[323613494,1714127441014,-500.0,0.00011671,2]
[323613496,1714127441024,-857.98,0.00011671,2]
[323613497,1714127441033,-500.0,0.00011671,2]
[323613499,1714127441042,-500.0,0.00011671,2]
[323613501,1714127441051,-500.0,0.00011671,2]
[323613503,1714127441060,-4071.38,0.00011671,2]
[323613504,1714127441069,-500.0,0.00011671,2]
[323613506,1714127441078,-500.0,0.00011671,2]
[323613508,1714127441086,-2405.8,0.00011671,2]
[323613510,1714127441096,-19833.08,0.00011671,2]
[323613511,1714127441105,-500.0,0.00011671,2]
[323613513,1714127441114,-520.91,0.00011671,2]
[323613515,1714127441123,-760.61,0.00011671,2]
[323613517,1714127441132,-500.0,0.00011671,2]
[323613519,1714127441141,-11870.6,0.00011671,2]
[323613520,1714127441150,-500.0,0.00011672,2]
[323613522,1714127441160,-480.53744087,0.00011672,2]
[323613524,1714127441169,-1622.79,0.00011672,2]
[323613525,1714127441178,-158.92852532,0.00011845,2]
[323613527,1714127441187,-150.18376717,0.000119,2]
[323613529,1714127441196,-168.12421072,0.000119,2]
[323613531,1714127441206,-150.0,0.00011918,2]
[323613533,1714127441215,-150.0,0.00011918,2]
[323613535,1714127441224,-150.0,0.00011918,2]
[323613536,1714127441237,-500.0,0.00011945,2]
[323613539,1714127441246,-786.98,0.00011945,2]
[323613540,1714127441255,-500.0,0.00011945,2]
[323613543,1714127441265,-500.0,0.00011945,2]
[323613544,1714127441274,-500.0,0.00011945,2]
[323613545,1714127441283,-674.67,0.00011945,2]
[323613546,1714127441292,-500.0,0.00011945,2]
[323613547,1714127441302,-500.0,0.00011945,2]
[323613548,1714127441311,-500.0,0.00011945,2]
[323613549,1714127441320,-1005.67,0.00011945,2]
[323613550,1714127441329,-500.0,0.00011945,2]
[323613551,1714127441338,-470.58,0.00011945,2]
[323613552,1714127441349,-500.0,0.00011945,2]
[323613553,1714127441358,-500.0,0.00011945,2]
[323613554,1714127441367,-500.0,0.00011945,2]
[323613555,1714127441377,-500.0,0.00011945,2]
[323613556,1714127441386,-500.0,0.00011945,2]
[323613557,1714127441395,-536.77,0.00011945,2]
[323613558,1714127441404,-500.0,0.00011945,2]
[323613559,1714127441413,-500.0,0.00011945,2]
[323613560,1714127441422,-500.0,0.00011945,2]
[323613562,1714127441432,-500.0,0.00011945,2]
[323613564,1714127441441,-857.98,0.00011945,2]
[323613566,1714127441449,-500.0,0.00011945,2]
[323613568,1714127441458,-500.0,0.00011945,2]
[323613570,1714127441467,-500.0,0.00011945,2]
[323613572,1714127441475,-4071.38,0.00011945,2]
[323613574,1714127441485,-500.0,0.00011945,2]
[323613576,1714127441494,-356.28,0.00011945,2]
[323613578,1714127441503,-2405.8,0.00011945,2]
[323613580,1714127441512,-19833.08,0.00011945,2]
[323613582,1714127441521,-500.0,0.00011945,2]
[323613583,1714127441531,-520.91,0.00011945,2]
[323613585,1714127441541,-760.61,0.00011945,2]
[323613588,1714127441550,-500.0,0.00011945,2]
[323613590,1714127441559,-11870.6,0.00011945,2]
[323613591,1714127441571,-500.0,0.00011946,2]
[323613594,1714127441581,-1622.79,0.00011946,2]
[323613595,1714127441591,-151.0,0.0001199,2]
[323613598,1714127441603,-109139.351801,0.0001199,2]
[323613599,1714127441612,-324.54761335,0.00011998,2]
[323613601,1714127441621,-156.21566749,0.00011998,2]
[323613603,1714127441629,-308.29578336,0.00011998,2]
[323613605,1714127441638,-307.42420553,0.00011998,2]
[323613607,1714127441647,-404.63624969,0.00011998,2]
[323613609,1714127441656,-265.50698915,0.00011998,2]
[323613611,1714127441666,-1228.86541044,0.00011998,2]
[323613613,1714127441675,-1066.05041716,0.00011998,2]
[323613615,1714127441684,-155.61508976,0.00011998,2]
[323613617,1714127441694,-282.97241003,0.00011998,2]
[323613620,1714127441703,-203.37552619,0.00011998,2]
[323613622,1714127441712,-709.78541386,0.00011998,2]
[323613624,1714127441722,-1244.4085051,0.00011998,2]
[323613626,1714127441731,-297.98372073,0.00011998,2]
[323613628,1714127441741,-4738.38867476,0.00011999,2]
[323613629,1714127441750,-255.22432126,0.00011999,2]
[323613631,1714127441759,-307.80802555,0.00011999,2]
[323613633,1714127441768,-1062.52946795,0.00011999,2]
[323613635,1714127441777,-155.21006694,0.00011999,2]
[323613637,1714127441787,-155.0,0.00011999,2]
[323613639,1714127441796,-262.0516888,0.00011999,2]
[323613641,1714127441805,-168.82619063,0.00011999,2]
[323613643,1714127441813,-245.0873984,0.00011999,2]
[323613645,1714127441822,-1535.26223044,0.00011999,2]
[323613647,1714127441831,-178.5680505,0.00011999,2]
[323613649,1714127441841,-341.72015705,0.00011999,2]
[323613652,1714127441852,-235.69826919,0.00011999,2]
[323613654,1714127441861,-1510.70224671,0.00011999,2]
[323613656,1714127441870,-417.48099988,0.00011999,2]
[323613658,1714127441879,-44893.36356289,0.00012,2]
[323613660,1714127441892,-2538.91574306,0.00012,2]
[323613663,1714127441914,-3441.23070896,0.00012,2]
[323613834,1714127443408,-2967.24275815,0.00011999,2]
[323613836,1714127443421,-7417.61609026,0.00011999,2]
[323613838,1714127443430,-18662.11190974,0.00012,2]
[323613849,1714127443519,-1252.441884,0.00012,2]
[323613857,1714127443683,-334010.84302755,0.00012,2]
[323613860,1714127443693,-11472.36526361,0.00012,2]